fUSD/lending_fUSD_20250708
["ID","MTS","AMOUNT","RATE_DAILY","PERIOD"]
[370338425,1751967032246,-357.24524426,0.000269,16]
[370338426,1751967032256,-1732.38177004,0.00026914,2]
[370338427,1751967032265,-245.0,0.0002693,7]
[370338428,1751967032273,-3017.03567505,0.00027005,2]
[370338429,1751967032293,-489.96292868,0.00027005,2]
[370338430,1751967032366,-368.23078069,0.00027005,2]
[370338431,1751967032381,-1989.20328656,0.00027005,2]
[370338432,1751967032408,-2549.9913105,0.00027005,2]
[370338433,1751967033090,0.26786716,8.3e-07,2]
[370338434,1751967033115,168.27865576,8.3e-07,2]
[370338436,1751967037560,-772.29940227,0.00027005,2]
[370338437,1751967037666,-297.76023399,0.00027005,2]
[370338438,1751967037722,-1486.05511616,0.00027005,2]
[370338439,1751967037830,-1561.54896292,0.00027005,2]
[370338626,1751967039637,-1151.51230318,0.00027005,2]
[370338628,1751967039646,-303.69087221,0.00027047,2]
[370338630,1751967039657,-696.30912779,0.00027047,2]
[370338633,1751967039668,-150.0,0.00027067,4]
[370338635,1751967039677,-2500.0,0.00027091,30]
[370338637,1751967039687,-207.4,0.00027104,2]
[370338639,1751967039696,-190.75172873,0.00027104,2]
[370338641,1751967039705,-151.0,0.00027104,2]
[370338643,1751967039715,-151.0,0.00027104,2]
[370338645,1751967039724,-151.0,0.00027104,2]
[370338647,1751967039733,-151.0,0.00027104,2]
[370338649,1751967039743,-151.0,0.00027104,2]
[370338651,1751967039752,-151.0,0.00027104,2]
[370338653,1751967039761,-151.0,0.00027104,2]
[370338655,1751967039770,-151.0,0.00027104,2]
[370338657,1751967039779,-151.0,0.00027104,2]
[370338659,1751967039789,-151.0,0.00027104,2]
[370338661,1751967039798,-151.0,0.00027104,2]
[370338663,1751967039808,-151.0,0.00027104,2]
[370338665,1751967039817,-151.0,0.00027104,2]
[370338667,1751967039826,-151.0,0.00027104,2]
[370338669,1751967039835,-150.0,0.00027115,4]
[370338671,1751967039845,-150.0,0.00027115,2]
[370338673,1751967039854,-171.47,0.00027146,2]
[370338675,1751967039863,-150.0,0.00027149,4]
[370338677,1751967039872,-357.24524398,0.00027279,16]
[370338679,1751967039881,-150.0,0.00027355,4]
[370338681,1751967039890,-150.0,0.00027355,4]
[370338683,1751967039900,-150.0,0.00027355,4]
[370338685,1751967039909,-600.0,0.00027397,2]
[370338687,1751967039918,-600.0,0.00027397,2]
[370338689,1751967039927,-187.97291454,0.00027397,2]
[370338691,1751967039937,-150.0,0.00027423,7]
[370338693,1751967039946,-304.0,0.00027472,7]
[370338695,1751967039955,-600.0,0.00027497,2]
[370338697,1751967039964,-232.78374872,0.00027497,2]
[370338699,1751967039974,-600.0,0.000275,10]
[370338701,1751967039983,-304.0,0.00027526,2]
[370338703,1751967039992,-150.0,0.0002756,7]
[370338705,1751967040001,-304.0,0.00027585,2]
[370338707,1751967040010,-150.0,0.00027595,7]
[370338709,1751967040019,-555.18916581,0.00027597,2]
[370338711,1751967040028,-1200.0,0.000276,10]
[370338713,1751967040037,-150.0,0.00027643,7]
[370338715,1751967040046,-357.24524398,0.00027659,17]
[370338717,1751967040055,-150.0,0.00027698,7]
[370338719,1751967040064,-1900.0,0.000277,10]
[370338721,1751967040074,-2500.0,0.00027718,30]
[370338723,1751967040085,-150.0,0.00027756,2]
[370338725,1751967040095,-698.489914,0.0002778,8]
[370338727,1751967040104,-522.0,0.00027782,6]
[370338729,1751967040113,-54045.95940893,0.000278,7]
[370338731,1751967040123,-2500.0,0.000278,10]
[370338733,1751967040132,-266.34,0.00027834,2]
[370338735,1751967040142,-150.0,0.00027835,7]
[370338737,1751967040151,-150.0,0.00027835,7]
[370338739,1751967040160,-1000.0,0.00027874,2]
[370338741,1751967040172,-1236.36223872,0.00027874,2]
[370338743,1751967040182,-3100.0,0.000279,10]
[370338745,1751967040191,-161.21280303,0.00027948,2]
[370338747,1751967040200,-1236.3622387,0.0002795,2]
[370338749,1751967040210,-3151.97033095,0.00027952,2]
[370338751,1751967040221,-273.272,0.00027962,2]
[370338753,1751967040231,-197.81340305,0.00027962,2]
[370338755,1751967040240,-333.01173897,0.00027962,2]
[370338757,1751967040250,-333.01173895,0.00027963,2]
[370338759,1751967040259,-333.01173895,0.00027963,2]
[370338761,1751967040269,-308.54,0.00027964,2]
[370338763,1751967040278,-150.0,0.00027972,7]
[370338765,1751967040287,-150.0,0.00027972,7]
[370338767,1751967040296,-150.0,0.00027973,2]
[370338769,1751967040306,-150.0,0.00027973,2]
[370338772,1751967040317,-150.0,0.00027973,2]
[370338774,1751967040327,-2560.90800072,0.00027973,14]
[370338776,1751967040336,-5000.0,0.00027974,2]
[370338778,1751967040346,-88888.0,0.00027974,3]
[370338780,1751967040356,-157.62880985,0.00027974,2]
[370338782,1751967040365,-500.0,0.00027975,2]
[370338784,1751967040375,-1000.0,0.00027975,2]
[370338786,1751967040384,-507.72687556,0.00027975,2]
[370338788,1751967040394,-308.54,0.00027989,2]
[370338790,1751967040403,-297.76,0.00027989,2]
[370338792,1751967040412,-1148.53,0.00027998,3]
[370338794,1751967040421,-531.43405647,0.00027998,2]
[370338796,1751967040430,-500.0,0.00027998,2]
[370338798,1751967040441,-531.43405647,0.00027998,2]
[370338800,1751967040450,-531.43405647,0.00027998,2]
[370338802,1751967040459,-531.43405647,0.00027998,2]
[370338804,1751967040468,-531.43405647,0.00027998,2]
[370338806,1751967040477,-531.43405647,0.00027998,2]
[370338808,1751967040486,-531.43405647,0.00027998,2]
[370338810,1751967040495,-531.43405647,0.00027998,2]
[370338812,1751967040504,-531.43405647,0.00027998,2]
[370338814,1751967040514,-531.43405647,0.00027998,2]
[370338816,1751967040523,-531.43405647,0.00027998,2]
[370338818,1751967040533,-531.43405647,0.00027998,2]
[370338820,1751967040542,-531.43405647,0.00027998,2]
[370338822,1751967040551,-531.43405647,0.00027998,2]
[370338824,1751967040560,-531.43405647,0.00027998,2]
[370338826,1751967040569,-531.43405647,0.00027998,2]
[370338828,1751967040579,-531.43405647,0.00027998,2]
[370338830,1751967040588,-531.43405647,0.00027998,2]
[370338831,1751967040597,-531.43405647,0.00027998,2]
[370338834,1751967040607,-531.43405647,0.00027998,2]
[370338835,1751967040617,-531.43405647,0.00027998,2]
[370338837,1751967040626,-531.43405647,0.00027998,2]
[370338839,1751967040636,-531.43405647,0.00027998,2]
[370338841,1751967040645,-531.43405647,0.00027998,2]
[370338843,1751967040654,-531.43405647,0.00027998,2]
[370338845,1751967040664,-531.43405647,0.00027998,2]
[370338847,1751967040673,-531.43405647,0.00027998,2]
[370338849,1751967040683,-531.43405647,0.00027998,2]
[370338851,1751967040692,-531.43405647,0.00027998,2]
[370338852,1751967040702,-531.43405647,0.00027998,2]
[370338853,1751967040711,-531.43405647,0.00027998,2]
[370338854,1751967040721,-531.43405647,0.00027998,2]
[370338855,1751967040730,-531.43405647,0.00027998,2]
[370338856,1751967040739,-531.43405647,0.00027998,2]
[370338857,1751967040748,-531.43405647,0.00027998,2]
[370338858,1751967040758,-531.43405647,0.00027998,2]
[370338859,1751967040767,-531.43405647,0.00027998,2]
[370338860,1751967040776,-531.43405647,0.00027998,2]
[370338861,1751967040786,-531.43405647,0.00027998,2]
[370338862,1751967040796,-531.43405647,0.00027998,2]
[370338864,1751967040805,-531.43405647,0.00027998,2]
[370338865,1751967040814,-531.43405647,0.00027998,2]
[370338867,1751967040824,-531.43405647,0.00027998,2]
[370338869,1751967040833,-531.43405647,0.00027998,2]
[370338871,1751967040842,-531.43405647,0.00027998,2]
[370338873,1751967040851,-531.43405647,0.00027998,2]
[370338875,1751967040860,-531.43405647,0.00027998,2]
[370338877,1751967040870,-531.43405647,0.00027998,2]
[370338879,1751967040878,-531.43405647,0.00027998,2]
[370338881,1751967040886,-531.43405647,0.00027998,2]
[370338883,1751967040895,-531.43405647,0.00027998,2]
[370338886,1751967040903,-531.43405647,0.00027998,2]
[370338888,1751967040912,-531.43405647,0.00027998,2]
[370338889,1751967040919,-531.43405647,0.00027998,2]
[370338891,1751967040926,-531.43405647,0.00027998,2]
[370338893,1751967040935,-531.43405647,0.00027998,2]
[370338895,1751967040944,-531.43405647,0.00027998,2]
[370338897,1751967040952,-531.43405647,0.00027998,2]
[370338899,1751967040961,-531.43405647,0.00027998,2]
[370338901,1751967040968,-531.43405647,0.00027998,2]
[370338904,1751967040977,-531.43405647,0.00027998,2]
[370338906,1751967040985,-531.43405647,0.00027998,2]
[370338908,1751967040993,-531.43405647,0.00027998,2]
[370338910,1751967041000,-531.43405647,0.00027998,2]
[370338912,1751967041009,-531.43405647,0.00027998,2]
[370338914,1751967041016,-531.43405647,0.00027998,2]
[370338916,1751967041024,-531.43405647,0.00027998,2]
[370338918,1751967041032,-531.43405647,0.00027998,2]
[370338920,1751967041040,-531.43405647,0.00027998,2]
[370338922,1751967041047,-460.0,0.00027998,3]
[370338923,1751967041054,-150.0,0.00027999,2]
[370338925,1751967041062,-364.0,0.00027999,2]
[370338927,1751967041070,-200.0,0.00028,2]
[370338929,1751967041077,-218.65763005,0.00028,2]
[370338931,1751967041086,-200.0,0.00028,2]
[370338933,1751967041093,-200.0,0.00028,2]
[370338935,1751967041100,-4137.41779,0.00028,2]
[370338937,1751967041108,-300.0,0.00028,2]
[370338939,1751967041117,-105963.62703592,0.00028,2]
[370338959,1751967041309,-2164.215192,0.00028,2]
[370338963,1751967041340,-2242.83707434,0.00028,2]
[370338969,1751967041383,-225401.10957447,0.00028,2]
[370338974,1751967041420,-45604.38521945,0.00028,2]
[370338977,1751967041443,-234941.805,0.00028,2]
[370338979,1751967041454,-4228.21282874,0.00028,2]
[370338981,1751967041465,-1141.51766214,0.00028,2]
[370338990,1751967042973,-500.0,0.00027998,2]
[370338991,1751967042983,-440.15059341,0.00027998,2]
[370338992,1751967042993,-561.89745693,0.00027998,2]
[370338993,1751967043002,-500.0,0.00027998,2]
[370338994,1751967043012,-625.27481337,0.00027998,2]
[370338995,1751967043021,-500.0,0.00027998,2]
[370338996,1751967043030,-500.0,0.00027998,2]
[370338997,1751967043040,-500.0,0.00027998,2]
[370338999,1751967043050,-283.98553698,0.00027998,2]
[370339000,1751967043059,-485.7054314,0.00027998,2]
[370339002,1751967043068,-381.47736839,0.00027998,2]
[370339004,1751967043077,-500.0,0.00027998,3]
[370339005,1751967043086,-9047.30889122,0.00028,2]
[370339006,1751967043096,-1668.84497925,0.00028,2]
[370339007,1751967043114,-512.46859998,0.00028,2]
[370339008,1751967043129,-461.65561973,0.00028,2]
[370339009,1751967043161,-6676.8,0.00028,2]
[370339010,1751967043174,-4454.88214,0.00028,2]
[370339011,1751967045470,-460.0,0.00027998,3]
[370339012,1751967045480,-460.0,0.00027998,3]
[370339013,1751967045491,-389.67732794,0.00028,2]
[370339014,1751967045586,-556.81298057,0.00028,2]
[370339015,1751967045598,-2200.93599848,0.00028,2]
[370339016,1751967045610,-10974.49789723,0.00028,2]
[370339017,1751967045693,-1641.8301,0.00028,2]
[370339018,1751967045705,-3441.38964069,0.00028,2]
[370339019,1751967045803,-2170.22636831,0.00028,2]
[370339020,1751967045861,-679.40528476,0.00028,2]
[370339021,1751967045915,-378.43528873,0.00028,2]
[370339022,1751967045927,-740.4999993,0.00028,2]
[370339023,1751967045979,-2482.68188717,0.00028,2]
[370339024,1751967045990,-1000.0,0.00028,2]
[370339030,1751967358322,500.0,0.0003013,120]
[370339031,1751967408988,500.0,0.0003013,120]
[370339032,1751967430442,155.05,0.00013699,2]
[370339056,1751968184223,920.0,0.00030137,120]
[370339058,1751968231782,-150.0,0.000216,2]
[370339059,1751968231792,-705.22843017,0.00021818,2]
[370339060,1751968231804,-738.6896368,0.00021818,2]
[370339061,1751968231815,-338.76638364,0.00021818,2]
[370339062,1751968231828,-995.01527321,0.00021818,2]
[370339063,1751968231837,-155.05,0.00021918,2]
[370339064,1751968231847,-150.0,0.0002201,2]
[370339065,1751968231856,-150.0,0.0002243,2]
[370339066,1751968231865,-150.0,0.0002284,2]
[370339067,1751968231874,-150.0,0.0002326,2]
[370339068,1751968231883,-150.0,0.0002367,2]
[370339069,1751968231893,-1174.93472679,0.00023799,2]
[370339070,1751968231904,-25.06527321,0.00023799,2]
[370339071,1751968231913,-1288.78472678,0.000238,3]
[370339072,1751968231925,-565.32363814,0.000238,3]
[370339073,1751968231937,-1148.71016618,0.000238,3]
[370339074,1751968231955,-1117.58849431,0.000238,3]
[370339075,1751968231967,-558.59297459,0.000238,3]
[370339076,1751968231976,-150.0,0.0002409,2]
[370339077,1751968231985,-683.5732203,0.000243,5]
[370339078,1751968231997,-779.31317074,0.000243,5]
[370339079,1751968232014,-940.61513571,0.000243,5]
[370339080,1751968232025,-896.40929933,0.000243,5]
[370339081,1751968232036,-454.79979123,0.000243,5]
[370339082,1751968232047,-1050.46279949,0.000243,5]
[370339083,1751968232059,-423.59708003,0.000243,5]
[370339084,1751968232070,-280.22950317,0.000243,5]
[370339085,1751968232079,-150.0,0.000245,2]
[370339086,1751968232088,-522.0,0.00024782,2]
[370339087,1751968232099,-150.0,0.00025718,2]
[370339088,1751968232108,-150.0,0.00025718,2]
[370339089,1751968232117,-150.0,0.00025718,2]
[370339090,1751968232126,-150.0,0.00025718,2]
[370339091,1751968232135,-89.50635615,0.00025718,2]
[370339092,1751968232146,-60.49364385,0.00025718,2]
[370339093,1751968232156,-150.0,0.00025718,2]
[370339094,1751968232166,-150.0,0.00025718,2]
[370339095,1751968232176,-150.0,0.00025718,2]
[370339096,1751968232185,-150.0,0.00025861,4]
[370339097,1751968232194,-339.0,0.00025933,2]
[370339098,1751968232204,-150.0,0.00026004,4]
[370339099,1751968232213,-719.25754255,0.00026058,2]
[370339100,1751968232226,-571.13245745,0.00026058,2]
[370339101,1751968232234,-103.86754255,0.00026059,2]
[370339102,1751968232269,-896.13245745,0.00026059,2]
[370339103,1751968232279,-150.0,0.00026146,4]
[370339105,1751968232287,-825.53,0.00026265,2]
[370339107,1751968232296,-735.99,0.00026271,2]
[370339110,1751968232305,-150.0,0.00026289,4]
[370339111,1751968232314,-43.12086734,0.00026289,4]
[370339115,1751968232325,-106.87913266,0.00026289,4]
[370339116,1751968232334,-300.0,0.0002629,2]
[370339141,1751968232609,-200.0,0.00026326,7]
[370339143,1751968232619,-94.70851205,0.00026432,4]
[370339146,1751968232630,-55.29148795,0.00026432,4]
[370339148,1751968232641,-150.0,0.00026575,4]
[370339149,1751968232650,-150.0,0.0002667,4]
[370339150,1751968232659,-150.0,0.00026682,2]
[370339151,1751968232669,-150.0,0.00026718,4]
[370339152,1751968232678,-379.49,0.00026729,2]
[370339153,1751968232688,-150.0,0.00026861,4]
[370339154,1751968232699,-150.0,0.00026861,4]
[370339155,1751968232709,-150.0,0.00027004,4]
[370339156,1751968232719,-166.89,0.00027019,2]
[370339157,1751968232731,-347.0,0.00027029,7]
[370339158,1751968232741,-677.52092465,0.00027104,2]
[370339159,1751968232757,-324.5158069,0.00027104,2]
[370339164,1751968237691,-547.34358927,0.000239,10]
[370339165,1751968237701,-547.3435891,0.00024383,11]
[370339166,1751968237710,-547.3435891,0.00024866,12]
[370339167,1751968237719,-547.3435891,0.00025348,13]
[370339168,1751968237728,-547.3435891,0.00025831,13]
[370339169,1751968237737,-547.3435891,0.00026314,14]
[370339170,1751968237746,-547.3435891,0.00026797,15]
[370339171,1751968237756,-3005.98145913,0.00027104,2]
[370339172,1751968237765,-207.4,0.00027104,2]
[370339173,1751968237774,-151.0,0.00027104,2]
[370339174,1751968237783,-151.0,0.00027104,2]
[370339175,1751968237792,-151.0,0.00027104,2]
[370339176,1751968237802,-151.0,0.00027104,2]
[370339177,1751968237811,-151.0,0.00027104,2]
[370339178,1751968237820,-151.0,0.00027104,2]
[370339179,1751968237829,-280.0,0.00027104,2]
[370339180,1751968237838,-463.56,0.00027118,2]
[370339181,1751968237848,-812.39,0.00027118,2]
[370339182,1751968237857,-812.39,0.00027118,2]
[370339183,1751968237866,-463.56,0.00027118,2]
[370339184,1751968237877,-463.56,0.00027118,2]
[370339185,1751968237888,-812.39,0.00027118,2]
[370339186,1751968237897,-812.39,0.00027118,2]
[370339187,1751968237907,-150.0,0.00027147,4]
[370339188,1751968237918,-150.0,0.00027147,4]
[370339189,1751968237929,-150.0,0.00027203,2]
[370339190,1751968237938,-150.0,0.00027228,2]
[370339191,1751968237948,-547.3435891,0.00027279,16]
[370339192,1751968237958,-150.0,0.00027289,4]
[370339193,1751968237967,-150.0,0.00027343,2]
[370339194,1751968237978,-150.0,0.00027373,2]
[370339195,1751968237988,-600.0,0.00027397,2]
[370339196,1751968237998,-600.0,0.00027397,2]
[370339197,1751968238012,-600.0,0.00027397,2]
[370339198,1751968238021,-600.0,0.00027397,2]
[370339199,1751968238030,-600.0,0.00027397,2]
[370339200,1751968238039,-383.25713633,0.00027397,2]
[370339201,1751968238049,-150.0,0.00027432,7]
[370339202,1751968238059,-150.0,0.00027432,7]
[370339203,1751968238069,-522.0,0.00027491,6]
[370339204,1751968238079,-601.60591615,0.00027492,2]
[370339205,1751968238100,-328.39408385,0.00027492,2]
[370339206,1751968238109,-150.0,0.00027492,2]
[370339207,1751968238118,-500.0,0.00027492,2]
[370339208,1751968238127,-500.0,0.00027492,2]
[370339209,1751968238137,-500.0,0.00027492,2]
[370339210,1751968238146,-500.0,0.00027492,2]
[370339211,1751968238156,-26.13900007,0.00027492,2]
[370339212,1751968238167,-417.86099993,0.00027492,2]
[370339213,1751968238176,-429.0,0.00027492,2]
[370339215,1751968238186,-150.0,0.00027492,2]
[370339216,1751968238195,-150.0,0.00027492,2]
[370339218,1751968238204,-150.0,0.00027492,2]
[370339219,1751968238214,-150.0,0.00027492,2]
[370339221,1751968238223,-500.0,0.00027492,2]
[370339223,1751968238232,-150.0,0.00027492,2]
[370339225,1751968238241,-150.0,0.00027492,2]
[370339226,1751968238251,-347.0,0.00027492,2]
[370339228,1751968238260,-600.0,0.00027497,2]
[370339229,1751968238270,-600.0,0.00027497,2]
[370339230,1751968238279,-600.0,0.00027497,2]
[370339231,1751968238288,-229.9542818,0.00027497,2]
[370339232,1751968238297,-600.0,0.000275,10]
[370339233,1751968238306,-150.0,0.00027575,7]
[370339234,1751968238315,-600.0,0.00027597,2]
[370339235,1751968238329,-600.0,0.00027597,2]
[370339236,1751968238339,-153.30285453,0.00027597,2]
[370339237,1751968238348,-1200.0,0.000276,10]
[370339238,1751968238358,-150.0,0.00027623,7]
[370339239,1751968238367,-2000.0,0.000277,2]
[370339240,1751968238377,-1900.0,0.000277,10]
[370339241,1751968238386,-150.0,0.00027718,2]
[370339242,1751968238395,-150.0,0.00027718,7]
[370339243,1751968238404,-150.0,0.00027732,2]
[370339244,1751968238413,-547.3435891,0.00027762,17]
[370339245,1751968238422,-930.0,0.00027766,2]
[370339246,1751968238432,-500.0,0.00027766,2]
[370339247,1751968238441,-500.0,0.00027766,2]
[370339248,1751968238450,-500.0,0.00027766,2]
[370339249,1751968238459,-500.0,0.00027766,2]
[370339250,1751968238468,-444.0,0.00027766,2]
[370339251,1751968238479,-429.0,0.00027766,2]
[370339252,1751968238488,-150.0,0.00027766,2]
[370339253,1751968238498,-150.0,0.00027766,2]
[370339254,1751968238508,-500.0,0.00027766,2]
[370339255,1751968238518,-150.0,0.00027766,2]
[370339256,1751968238527,-150.0,0.00027766,2]
[370339257,1751968238536,-150.0,0.00027767,2]
[370339258,1751968238545,-168.0,0.0002777,2]
[370339259,1751968238555,-795.819244,0.0002778,8]
[370339260,1751968238564,-2500.0,0.000278,10]
[370339261,1751968238573,-5548.037,0.00027822,17]
[370339262,1751968238583,-349.562,0.00027842,17]
[370339263,1751968238593,-150.0,0.00027845,2]
[370339264,1751968238604,-150.0,0.00027845,2]
[370339265,1751968238616,-150.0,0.00027861,7]
[370339266,1751968238627,-273.272,0.00027862,2]
[370339267,1751968238636,-500.0,0.00027874,2]
[370339268,1751968238647,-167.78005564,0.00027878,2]
[370339269,1751968238657,-167.78005561,0.00027879,2]
[370339270,1751968238666,-3471.52878104,0.00027879,2]
[370339271,1751968238675,-167.78005561,0.00027879,2]
[370339272,1751968238685,-167.78005561,0.0002788,2]
[370339273,1751968238694,-167.78005561,0.0002788,2]
[370339274,1751968238704,-167.78005561,0.00027881,2]
[370339275,1751968238715,-167.78005561,0.00027881,2]
[370339276,1751968238724,-167.78005561,0.00027882,2]
[370339277,1751968238734,-167.78005561,0.00027883,2]
[370339278,1751968238743,-167.78005561,0.00027883,2]
[370339279,1751968238752,-167.78005561,0.00027884,2]
[370339280,1751968238761,-167.78005561,0.00027884,2]
[370339281,1751968238771,-167.78005561,0.00027885,2]
[370339282,1751968238781,-167.78005561,0.00027886,2]
[370339283,1751968238791,-1465.01233255,0.00027886,2]
[370339284,1751968238801,-167.78005561,0.00027886,2]
[370339285,1751968238810,-167.78005561,0.00027887,2]
[370339286,1751968238820,-407.74795602,0.00027887,2]
[370339287,1751968238831,-1000.0,0.00027887,2]
[370339288,1751968238841,-167.78005561,0.00027887,2]
[370339289,1751968238850,-167.78005561,0.00027888,2]
[370339290,1751968238859,-167.78005561,0.00027888,2]
[370339291,1751968238868,-167.78005561,0.00027889,2]
[370339292,1751968238877,-511.2577123,0.00027895,2]
[370339293,1751968238887,-157.59991505,0.00027898,2]
[370339294,1751968239147,-1769.54422145,0.00027898,2]
[370339295,1751968239159,-3230.45577855,0.00027898,2]
[370339296,1751968239169,-3100.0,0.000279,10]
[370339297,1751968239179,-2025.00597245,0.000279,2]
[370339298,1751968239190,-15601.0835964,0.000279,2]
[370339299,1751968239200,-3471.52878103,0.00027916,2]
[370339300,1751968239209,-150.0,0.00027923,2]
[370339301,1751968239219,-1465.01233247,0.00027944,2]
[370339302,1751968239229,-435.19446474,0.00027952,2]
[370339303,1751968239238,-2527.9,0.00027952,3]
[370339304,1751968239247,-12357.87164936,0.00027953,2]
[370339305,1751968239259,-294.22488331,0.00027953,2]
[370339306,1751968239293,-6624.42880612,0.00027953,2]
[370339307,1751968239305,-557.23,0.00027953,2]
[370339308,1751968239323,-8428.54902853,0.00027953,2]
[370339309,1751968239342,-413.93773268,0.00027953,2]
[370339310,1751968239351,-3471.52878103,0.00027954,2]
[370339311,1751968239361,-168.0,0.00027961,2]
[370339312,1751968239370,-150.0,0.00027962,2]
[370339313,1751968239379,-150.0,0.00027963,2]
[370339314,1751968239389,-509.93477975,0.00027973,5]
[370339315,1751968239399,-500.0,0.00027973,5]
[370339316,1751968239408,-144.59870654,0.00027973,5]
[370339317,1751968239427,-268.48354683,0.00027973,5]
[370339342,1751968240572,-86.91774663,0.00027973,5]
[370339344,1751968240582,-500.0,0.00027973,5]
[370339346,1751968240592,-500.0,0.00027973,2]
[370339348,1751968240602,-500.0,0.00027973,5]
[370339350,1751968240612,-500.0,0.00027973,5]
[370339352,1751968240621,-500.59724389,0.00027973,5]
[370339354,1751968240635,-502.39280558,0.00027973,5]
[370339356,1751968240644,-500.0,0.00027973,5]
[370339358,1751968240653,-404.47928723,0.00027973,5]
[370339360,1751968240662,-500.0,0.00027973,5]
[370339361,1751968240671,-500.0,0.00027973,5]
[370339362,1751968240681,-500.66300903,0.00027973,5]
[370339363,1751968240691,-436.64380506,0.00027974,2]
[370339364,1751968240701,-21318.30610258,0.00027977,2]
[370339365,1751968240714,-447.06094897,0.00027977,2]
[370339366,1751968240734,-18678.03254975,0.00027977,2]
[370339367,1751968240744,-170.86490094,0.00027977,2]
[370339368,1751968240754,-286.73161291,0.00027979,2]
[370339369,1751968240764,-500.0,0.00027979,2]
[370339370,1751968240772,-500.0,0.00027979,2]
[370339371,1751968240782,-248.10414879,0.00027979,2]
[370339372,1751968240791,-500.0,0.00027979,2]
[370339373,1751968240800,-500.0,0.00027979,2]
[370339374,1751968240809,-500.0,0.00027979,2]
[370339375,1751968240819,-500.0,0.00027979,2]
[370339376,1751968240828,-500.0,0.00027979,2]
[370339377,1751968240837,-500.0,0.00027979,2]
[370339378,1751968240846,-462.79760788,0.00027979,2]
[370339379,1751968240856,-500.0,0.00027979,2]
[370339380,1751968240865,-500.0,0.00027979,2]
[370339381,1751968240874,-500.0,0.00027979,2]
[370339382,1751968240883,-500.0,0.00027979,2]
[370339383,1751968240893,-500.0,0.00027979,2]
[370339384,1751968240902,-500.0,0.00027979,2]
[370339385,1751968240912,-500.0,0.00027979,2]
[370339386,1751968240922,-500.0,0.00027979,2]
[370339387,1751968240933,-573.32175036,0.00027979,2]
[370339388,1751968240943,-500.0,0.00027979,2]
[370339389,1751968240952,-500.0,0.00027979,2]
[370339390,1751968240962,-500.0,0.00027979,2]
[370339391,1751968240972,-500.0,0.00027979,2]
[370339392,1751968240981,-500.0,0.00027979,2]
[370339393,1751968240991,-500.0,0.00027979,2]
[370339394,1751968241001,-500.0,0.00027979,2]
[370339395,1751968241010,-500.0,0.00027979,2]
[370339396,1751968241020,-500.0,0.00027979,2]
[370339397,1751968241030,-500.0,0.00027979,2]
[370339398,1751968241039,-500.0,0.00027979,2]
[370339399,1751968241049,-500.0,0.00027979,2]
[370339400,1751968241058,-500.0,0.00027979,2]
[370339401,1751968241067,-500.0,0.00027979,2]
[370339402,1751968241076,-500.0,0.00027979,2]
[370339403,1751968241087,-500.0,0.00027979,2]
[370339404,1751968241096,-500.0,0.00027979,2]
[370339405,1751968241105,-500.0,0.00027979,2]
[370339406,1751968241114,-500.0,0.00027979,2]
[370339407,1751968241124,-500.0,0.00027979,2]
[370339408,1751968241133,-500.0,0.00027979,2]
[370339409,1751968241142,-500.0,0.00027979,2]
[370339410,1751968241152,-500.0,0.00027979,2]
[370339411,1751968241161,-500.0,0.00027979,2]
[370339412,1751968241170,-500.0,0.00027979,2]
[370339413,1751968241180,-500.0,0.00027979,2]
[370339414,1751968241191,-500.0,0.00027979,2]
[370339415,1751968241200,-500.0,0.00027979,2]